[Event "Late-Titled-Tuesday-Blitz-February-20-2024"]
[Site "Chess.com"]
[Date "2024.02.20"]
[Round "10"]
[White "dretch"]
[Black "Alphafischer2019"]
[Result "1-0"]
[WhiteElo "2873"]
[BlackElo "2677"]
[TimeControl "180+1"]
[EndTime "15:56:12 PST"]
[Termination "dretch won by checkmate"]

1. d4 {[%clk 0:03:00.9]} 1... Nf6 {[%clk 0:02:59.6]} 2. c4 {[%clk 0:03:01.4]}
2... b6 {[%clk 0:03:00.3]} 3. Bg5 {[%clk 0:02:58.3]} 3... Bb7 {[%clk 0:02:52.5]}
4. Nc3 {[%clk 0:02:57.8]} 4... h6 {[%clk 0:02:44.6]} 5. Bxf6 {[%clk 0:02:56.5]}
5... exf6 {[%clk 0:02:44.9]} 6. e3 {[%clk 0:02:56.5]} 6... g6 {[%clk 0:02:42.6]}
7. Nf3 {[%clk 0:02:51.5]} 7... f5 {[%clk 0:02:39.6]} 8. Bd3 {[%clk 0:02:46.1]}
8... Bg7 {[%clk 0:02:40.1]} 9. h4 {[%clk 0:02:37.2]} 9... h5 {[%clk 0:02:36.5]}
10. Qc2 {[%clk 0:02:25.4]} 10... O-O {[%clk 0:02:34.4]} 11. Ng5 {[%clk 0:02:23]}
11... d6 {[%clk 0:02:24]} 12. Bxf5 {[%clk 0:02:18.9]} 12... Re8 {[%clk
0:01:55.6]} 13. Nxf7 {[%clk 0:01:57.2]} 13... Kxf7 {[%clk 0:01:53.4]} 14. Bxg6+
{[%clk 0:01:57.3]} 14... Kg8 {[%clk 0:01:53.4]} 15. Bxe8 {[%clk 0:01:57]} 15...
Qxe8 {[%clk 0:01:53.7]} 16. O-O-O {[%clk 0:01:56.9]} 16... Nd7 {[%clk
0:01:41.2]} 17. Rhe1 {[%clk 0:01:23.5]} 17... Bxg2 {[%clk 0:01:37.4]} 18. Rg1
{[%clk 0:01:03.4]} 18... Bf3 {[%clk 0:01:35.9]} 19. Rde1 {[%clk 0:00:57.7]}
19... Qf7 {[%clk 0:01:23.2]} 20. Rg3 {[%clk 0:00:56]} 20... Kh8 {[%clk
0:01:18.4]} 21. Reg1 {[%clk 0:00:53.4]} 21... Rg8 {[%clk 0:01:13]} 22. Ne2
{[%clk 0:00:22.5]} 22... Bg4 {[%clk 0:01:03.2]} 23. f3 {[%clk 0:00:18.8]} 23...
Bf5 {[%clk 0:01:01.5]} 24. e4 {[%clk 0:00:06.9]} 24... Bh6+ {[%clk 0:00:58.8]}
25. Kb1 {[%clk 0:00:03.7]} 25... Rxg3 {[%clk 0:00:59.2]} 26. Nxg3 {[%clk
0:00:04.5]} 26... Bh7 {[%clk 0:00:58]} 27. Qd3 {[%clk 0:00:04.9]} 27... Nf8
{[%clk 0:00:37]} 28. a3 {[%clk 0:00:05.1]} 28... Ne6 {[%clk 0:00:36.9]} 29. Nf5
{[%clk 0:00:04.8]} 29... Bf8 {[%clk 0:00:28.6]} 30. c5 {[%clk 0:00:04.7]} 30...
bxc5 {[%clk 0:00:07.2]} 31. dxc5 {[%clk 0:00:04.7]} 31... Bxf5 {[%clk 0:00:08]}
32. exf5 {[%clk 0:00:04.7]} 32... Nxc5 {[%clk 0:00:08.6]} 33. Qc2 {[%clk
0:00:03.4]} 33... Bg7 {[%clk 0:00:08.8]} 34. Rg5 {[%clk 0:00:03.6]} 34... Nd7
{[%clk 0:00:05.7]} 35. Qe2 {[%clk 0:00:03.2]} 35... Nf6 {[%clk 0:00:06.1]} 36.
Qe6 {[%clk 0:00:03.3]} 36... Qxe6 {[%clk 0:00:06.3]} 37. fxe6 {[%clk 0:00:04.2]}
37... Kg8 {[%clk 0:00:07]} 38. Ra5 {[%clk 0:00:04.7]} 38... Kf8 {[%clk
0:00:06.9]} 39. Rxa7 {[%clk 0:00:04.6]} 39... Nd5 {[%clk 0:00:07.7]} 40. Ra5
{[%clk 0:00:04.5]} 40... Nf6 {[%clk 0:00:07]} 41. Rg5 {[%clk 0:00:04.3]} 41...
Bh6 {[%clk 0:00:06.4]} 42. Rg6 {[%clk 0:00:04.9]} 42... Bg7 {[%clk 0:00:07]} 43.
a4 {[%clk 0:00:05.5]} 43... Ne8 {[%clk 0:00:07.1]} 44. a5 {[%clk 0:00:05.7]}
44... Ke7 {[%clk 0:00:07.4]} 45. a6 {[%clk 0:00:06.3]} 45... Bd4 {[%clk
0:00:06.9]} 46. Rh6 {[%clk 0:00:05.9]} 46... Nf6 {[%clk 0:00:05.9]} 47. Rh8
{[%clk 0:00:05.5]} 47... Kxe6 {[%clk 0:00:05.8]} 48. Rb8 {[%clk 0:00:05]} 48...
Nd5 {[%clk 0:00:05.3]} 49. Rb7 {[%clk 0:00:05.1]} 49... Kf5 {[%clk 0:00:01.9]}
50. a7 {[%clk 0:00:05.3]} 50... Bxa7 {[%clk 0:00:02.7]} 51. Rxa7 {[%clk
0:00:06.2]} 51... Kf4 {[%clk 0:00:03.3]} 52. Ra5 {[%clk 0:00:06]} 52... Ne3
{[%clk 0:00:03.3]} 53. Rxh5 {[%clk 0:00:05.7]} 53... Kxf3 {[%clk 0:00:03.5]} 54.
Rh7 {[%clk 0:00:06.6]} 54... c5 {[%clk 0:00:03.5]} 55. Rg7 {[%clk 0:00:06.7]}
55... d5 {[%clk 0:00:03.1]} 56. h5 {[%clk 0:00:06.9]} 56... d4 {[%clk
0:00:03.9]} 57. h6 {[%clk 0:00:07.3]} 57... d3 {[%clk 0:00:04.7]} 58. Rd7 {[%clk
0:00:07.4]} 58... Ke2 {[%clk 0:00:01.6]} 59. h7 {[%clk 0:00:07.6]} 59... d2
{[%clk 0:00:02.5]} 60. h8=Q {[%clk 0:00:07.3]} 60... d1=Q+ {[%clk 0:00:02.5]}
61. Rxd1 {[%clk 0:00:07]} 61... Kxd1 {[%clk 0:00:03.4]} 62. Qc3 {[%clk
0:00:06.8]} 62... Nd5 {[%clk 0:00:04.3]} 63. Qxc5 {[%clk 0:00:07]} 63... Nf4
{[%clk 0:00:04.2]} 64. Qd4+ {[%clk 0:00:07.3]} 64... Ke1 {[%clk 0:00:04.8]} 65.
Qxf4 {[%clk 0:00:07.5]} 65... Kd1 {[%clk 0:00:05.7]} 66. Qh2 {[%clk 0:00:07.5]}
66... Ke1 {[%clk 0:00:06]} 67. Kc2 {[%clk 0:00:07.7]} 67... Kf1 {[%clk
0:00:06.9]} 68. Kd3 {[%clk 0:00:08.3]} 68... Ke1 {[%clk 0:00:07.8]} 69. Qe2#
{[%clk 0:00:08.2]} 1-0

[Event "Late-Titled-Tuesday-Blitz-February-20-2024"]
[Site "Chess.com"]
[Date "2024.02.20"]
[Round "10"]
[White "Fh2411"]
[Black "alexrustemov"]
[Result "1-0"]
[WhiteElo "2631"]
[BlackElo "2844"]
[TimeControl "180+1"]
[EndTime "15:56:34 PST"]
[Termination "Fh2411 won by checkmate"]

1. d4 {[%clk 0:02:59.2]} 1... d5 {[%clk 0:02:59.1]} 2. Nf3 {[%clk 0:02:57.5]}
2... Nf6 {[%clk 0:02:59]} 3. Bf4 {[%clk 0:02:58.1]} 3... c5 {[%clk 0:02:58.5]}
4. e3 {[%clk 0:02:58.6]} 4... Nc6 {[%clk 0:02:58.9]} 5. Nbd2 {[%clk 0:02:58.8]}
5... Bg4 {[%clk 0:02:58.3]} 6. c3 {[%clk 0:02:55.7]} 6... e6 {[%clk 0:02:58.2]}
7. Qb3 {[%clk 0:02:56.3]} 7... Qc8 {[%clk 0:02:57.8]} 8. h3 {[%clk 0:02:49.9]}
8... Bh5 {[%clk 0:02:56.4]} 9. Ne5 {[%clk 0:02:42.3]} 9... a6 {[%clk 0:02:48.3]}
10. Ndf3 {[%clk 0:02:08.8]} 10... Be7 {[%clk 0:02:33.9]} 11. dxc5 {[%clk
0:02:00.6]} 11... Bxc5 {[%clk 0:02:25.8]} 12. Bd3 {[%clk 0:02:00.6]} 12... O-O
{[%clk 0:02:23.7]} 13. O-O {[%clk 0:02:00.7]} 13... b5 {[%clk 0:02:04.8]} 14.
Nxc6 {[%clk 0:01:46.9]} 14... Qxc6 {[%clk 0:02:04.5]} 15. Ne5 {[%clk 0:01:47.5]}
15... Qb7 {[%clk 0:01:56]} 16. a4 {[%clk 0:01:46.2]} 16... b4 {[%clk 0:01:53.6]}
17. cxb4 {[%clk 0:01:33.5]} 17... Qxb4 {[%clk 0:01:43.1]} 18. Qxb4 {[%clk
0:01:31.7]} 18... Bxb4 {[%clk 0:01:31.3]} 19. Nc6 {[%clk 0:01:30.5]} 19... Bc5
{[%clk 0:00:47]} 20. Rfc1 {[%clk 0:01:29.1]} 20... Ba7 {[%clk 0:00:45.5]} 21. a5
{[%clk 0:01:19.6]} 21... Bg6 {[%clk 0:00:34.9]} 22. Bf1 {[%clk 0:01:15.2]} 22...
Ne4 {[%clk 0:00:30]} 23. b4 {[%clk 0:01:02.6]} 23... Nd2 {[%clk 0:00:25.8]} 24.
Ra2 {[%clk 0:01:01]} 24... Nc4 {[%clk 0:00:23.3]} 25. Ne7+ {[%clk 0:00:53]}
25... Kh8 {[%clk 0:00:22.9]} 26. Nxg6+ {[%clk 0:00:52.9]} 26... hxg6 {[%clk
0:00:23.8]} 27. Bxc4 {[%clk 0:00:53]} 27... dxc4 {[%clk 0:00:24.6]} 28. Rxc4
{[%clk 0:00:53.3]} 28... f6 {[%clk 0:00:23.6]} 29. Bd6 {[%clk 0:00:48.5]} 29...
Rfd8 {[%clk 0:00:22.4]} 30. Rc6 {[%clk 0:00:49.1]} 30... Bb8 {[%clk 0:00:21.7]}
31. Rd2 {[%clk 0:00:43.3]} 31... Bxd6 {[%clk 0:00:20.3]} 32. Rdxd6 {[%clk
0:00:43.2]} 32... Rxd6 {[%clk 0:00:21]} 33. Rxd6 {[%clk 0:00:44.1]} 33... e5
{[%clk 0:00:21.5]} 34. Rb6 {[%clk 0:00:41.6]} 34... g5 {[%clk 0:00:17.5]} 35.
Kf1 {[%clk 0:00:36.1]} 35... Kh7 {[%clk 0:00:17.8]} 36. Ke2 {[%clk 0:00:36.7]}
36... Kg6 {[%clk 0:00:18.2]} 37. e4 {[%clk 0:00:35.7]} 37... Kh5 {[%clk
0:00:17]} 38. Kf3 {[%clk 0:00:31.5]} 38... Kh4 {[%clk 0:00:16]} 39. Rb7 {[%clk
0:00:29.4]} 39... Rg8 {[%clk 0:00:15.6]} 40. Rb6 {[%clk 0:00:20.7]} 40... Ra8
{[%clk 0:00:14.9]} 41. Ke3 {[%clk 0:00:20.8]} 41... g4 {[%clk 0:00:14.7]} 42.
hxg4 {[%clk 0:00:21.3]} 42... Kxg4 {[%clk 0:00:15.2]} 43. Rb7 {[%clk 0:00:14.8]}
43... g6 {[%clk 0:00:14.9]} 44. Rb6 {[%clk 0:00:14.1]} 44... Kg5 {[%clk
0:00:14.8]} 45. g3 {[%clk 0:00:14.2]} 45... f5 {[%clk 0:00:15.1]} 46. f4+ {[%clk
0:00:13.6]} 46... Kg4 {[%clk 0:00:11]} 47. Rxg6+ {[%clk 0:00:13]} 47... Kh3
{[%clk 0:00:11]} 48. exf5 {[%clk 0:00:12.1]} 48... Rb8 {[%clk 0:00:07.8]} 49.
Rb6 {[%clk 0:00:10]} 49... Re8 {[%clk 0:00:07.4]} 50. fxe5 {[%clk 0:00:10.4]}
50... Rxe5+ {[%clk 0:00:08.3]} 51. Kf4 {[%clk 0:00:11]} 51... Re1 {[%clk
0:00:08.6]} 52. Rh6+ {[%clk 0:00:10.9]} 52... Kg2 {[%clk 0:00:08.5]} 53. Rxa6
{[%clk 0:00:11.6]} 53... Rf1+ {[%clk 0:00:08.5]} 54. Kg4 {[%clk 0:00:11.9]}
54... Rb1 {[%clk 0:00:07.9]} 55. Rb6 {[%clk 0:00:11.9]} 55... Rd1 {[%clk
0:00:04.7]} 56. f6 {[%clk 0:00:11.9]} 56... Rd4+ {[%clk 0:00:04.9]} 57. Kf5
{[%clk 0:00:12.2]} 57... Kxg3 {[%clk 0:00:05.8]} 58. a6 {[%clk 0:00:12.1]} 58...
Rd7 {[%clk 0:00:04.7]} 59. Rb7 {[%clk 0:00:11.4]} 59... Rd5+ {[%clk 0:00:04.1]}
60. Ke6 {[%clk 0:00:11.2]} 60... Rd4 {[%clk 0:00:04.2]} 61. a7 {[%clk
0:00:11.1]} 61... Re4+ {[%clk 0:00:04.5]} 62. Kf7 {[%clk 0:00:10.8]} 62... Rh4
{[%clk 0:00:01.4]} 63. a8=Q {[%clk 0:00:09.8]} 63... Rh7+ {[%clk 0:00:02.3]} 64.
Ke6 {[%clk 0:00:10.2]} 64... Rh4 {[%clk 0:00:02.6]} 65. Rg7+ {[%clk 0:00:10]}
65... Kf2 {[%clk 0:00:02]} 66. Qg2+ {[%clk 0:00:10.6]} 66... Ke3 {[%clk
0:00:02.3]} 67. Rg4 {[%clk 0:00:10.5]} 67... Rh6 {[%clk 0:00:01.8]} 68. Qe4+
{[%clk 0:00:09.6]} 68... Kd2 {[%clk 0:00:01.9]} 69. Rg2+ {[%clk 0:00:09.9]}
69... Kc3 {[%clk 0:00:02.8]} 70. Rc2+ {[%clk 0:00:09.5]} 70... Kb3 {[%clk
0:00:02.6]} 71. Qc4+ {[%clk 0:00:09.4]} 71... Ka3 {[%clk 0:00:02.7]} 72. Ra2#
{[%clk 0:00:09.9]} 1-0

[Event "Late-Titled-Tuesday-Blitz-February-20-2024"]
[Site "Chess.com"]
[Date "2024.02.20"]
[Round "10"]
[White "Kosak12"]
[Black "zverr1"]
[Result "1/2-1/2"]
[WhiteElo "2804"]
[BlackElo "2590"]
[TimeControl "180+1"]
[EndTime "15:57:13 PST"]
[Termination "Game drawn by repetition"]

1. Nf3 {[%clk 0:02:55.5]} 1... g6 {[%clk 0:02:59.4]} 2. g3 {[%clk 0:02:55.6]}
2... Bg7 {[%clk 0:02:59.1]} 3. Bg2 {[%clk 0:02:55.8]} 3... Nf6 {[%clk
0:02:59.5]} 4. O-O {[%clk 0:02:55.4]} 4... d5 {[%clk 0:03:00.2]} 5. d3 {[%clk
0:02:54.4]} 5... O-O {[%clk 0:03:00.1]} 6. c4 {[%clk 0:02:53.5]} 6... c6 {[%clk
0:02:59.7]} 7. Qb3 {[%clk 0:02:44.3]} 7... a5 {[%clk 0:02:43.1]} 8. Nc3 {[%clk
0:02:42.7]} 8... Re8 {[%clk 0:02:35.2]} 9. Bf4 {[%clk 0:02:38.9]} 9... e6 {[%clk
0:02:19.5]} 10. Rfc1 {[%clk 0:02:33.5]} 10... Nbd7 {[%clk 0:02:17.2]} 11. Bd6
{[%clk 0:02:00.3]} 11... Bf8 {[%clk 0:02:01.2]} 12. Bxf8 {[%clk 0:02:00.2]}
12... Rxf8 {[%clk 0:02:02.1]} 13. Qa3 {[%clk 0:01:43.5]} 13... Re8 {[%clk
0:01:36]} 14. Rab1 {[%clk 0:00:55.2]} 14... Ra6 {[%clk 0:01:28.3]} 15. Nd2
{[%clk 0:00:45.9]} 15... Ne5 {[%clk 0:01:09.5]} 16. Na4 {[%clk 0:00:35.2]} 16...
Qe7 {[%clk 0:00:39.5]} 17. Qxe7 {[%clk 0:00:31.7]} 17... Rxe7 {[%clk 0:00:40.4]}
18. a3 {[%clk 0:00:23]} 18... Ra8 {[%clk 0:00:33.5]} 19. Nb6 {[%clk 0:00:22.2]}
19... Rb8 {[%clk 0:00:28.5]} 20. b4 {[%clk 0:00:22.2]} 20... axb4 {[%clk
0:00:25.7]} 21. axb4 {[%clk 0:00:22.5]} 21... Ned7 {[%clk 0:00:21.4]} 22. Nxc8
{[%clk 0:00:20.7]} 22... Rxc8 {[%clk 0:00:20.6]} 23. b5 {[%clk 0:00:21.1]} 23...
Nf8 {[%clk 0:00:10.7]} 24. bxc6 {[%clk 0:00:18.7]} 24... bxc6 {[%clk 0:00:11.6]}
25. cxd5 {[%clk 0:00:19]} 25... exd5 {[%clk 0:00:08.2]} 26. e3 {[%clk
0:00:17.4]} 26... Rec7 {[%clk 0:00:07.5]} 27. d4 {[%clk 0:00:15.6]} 27... Ne6
{[%clk 0:00:06.3]} 28. Nb3 {[%clk 0:00:11.3]} 28... c5 {[%clk 0:00:06.3]} 29.
dxc5 {[%clk 0:00:11.3]} 29... Nxc5 {[%clk 0:00:07.2]} 30. Nxc5 {[%clk
0:00:08.2]} 30... Rxc5 {[%clk 0:00:07.4]} 31. Rxc5 {[%clk 0:00:06.5]} 31... Rxc5
{[%clk 0:00:08.3]} 32. h3 {[%clk 0:00:04.7]} 32... h5 {[%clk 0:00:07]} 33. Bf3
{[%clk 0:00:04.2]} 33... Kg7 {[%clk 0:00:06.9]} 34. Rb7 {[%clk 0:00:04.3]} 34...
Rc2 {[%clk 0:00:05.6]} 35. Kg2 {[%clk 0:00:02.9]} 35... Rd2 {[%clk 0:00:05.8]}
36. Re7 {[%clk 0:00:02.8]} 36... d4 {[%clk 0:00:04.3]} 37. e4 {[%clk 0:00:02.3]}
37... Ng8 {[%clk 0:00:02]} 38. Rd7 {[%clk 0:00:02.5]} 38... Kf6 {[%clk
0:00:02.2]} 39. Rd8 {[%clk 0:00:02.6]} 39... Ne7 {[%clk 0:00:02.4]} 40. Rd6+
{[%clk 0:00:02.5]} 40... Ke5 {[%clk 0:00:02.6]} 41. Rd7 {[%clk 0:00:03.2]} 41...
Ke6 {[%clk 0:00:03]} 42. Rd8 {[%clk 0:00:03.8]} 42... Nc6 {[%clk 0:00:03.4]} 43.
Rc8 {[%clk 0:00:03.1]} 43... Ne5 {[%clk 0:00:04]} 44. Re8+ {[%clk 0:00:03.1]}
44... Kf6 {[%clk 0:00:03.8]} 45. Rd8 {[%clk 0:00:03.2]} 45... Nd3 {[%clk
0:00:02.9]} 46. g4 {[%clk 0:00:01.9]} 46... Ne1+ {[%clk 0:00:02.2]} 47. Kg3
{[%clk 0:00:02]} 47... Rd3 {[%clk 0:00:01.9]} 48. gxh5 {[%clk 0:00:01.7]} 48...
Rxf3+ {[%clk 0:00:01.8]} 49. Kg4 {[%clk 0:00:02.4]} 49... gxh5+ {[%clk
0:00:02.1]} 50. Kxh5 {[%clk 0:00:03]} 50... Rxh3+ {[%clk 0:00:02.3]} 51. Kg4
{[%clk 0:00:03.6]} 51... Rf3 {[%clk 0:00:02.9]} 52. Rxd4 {[%clk 0:00:03]} 52...
Rxf2 {[%clk 0:00:03.5]} 53. Rd1 {[%clk 0:00:03]} 53... Nc2 {[%clk 0:00:03.9]}
54. Kg3 {[%clk 0:00:03.2]} 54... Re2 {[%clk 0:00:03.6]} 55. Rf1+ {[%clk
0:00:03.1]} 55... Ke6 {[%clk 0:00:03.6]} 56. Kf4 {[%clk 0:00:03.3]} 56... Rh2
{[%clk 0:00:03.3]} 57. Rb1 {[%clk 0:00:03]} 57... Nd4 {[%clk 0:00:03.4]} 58.
Rb6+ {[%clk 0:00:02.8]} 58... Ke7 {[%clk 0:00:03.8]} 59. Ke5 {[%clk 0:00:03.2]}
59... Ne6 {[%clk 0:00:03.5]} 60. Rb7+ {[%clk 0:00:03.8]} 60... Kf8 {[%clk
0:00:04.3]} 61. Kf6 {[%clk 0:00:01.8]} 61... Rh6+ {[%clk 0:00:04.2]} 62. Ke5
{[%clk 0:00:02]} 62... Kg7 {[%clk 0:00:04.9]} 63. Ra7 {[%clk 0:00:02.2]} 63...
Rh5+ {[%clk 0:00:05.6]} 64. Kd6 {[%clk 0:00:02.9]} 64... Rh4 {[%clk 0:00:05.6]}
65. e5 {[%clk 0:00:03]} 65... Rd4+ {[%clk 0:00:05.8]} 66. Ke7 {[%clk 0:00:03.7]}
66... Rd5 {[%clk 0:00:06]} 67. Ra1 {[%clk 0:00:02.9]} 67... Rxe5 {[%clk
0:00:05.4]} 68. Rg1+ {[%clk 0:00:03.6]} 68... Rg5 {[%clk 0:00:06]} 69. Rf1
{[%clk 0:00:03.6]} 69... Nf4 {[%clk 0:00:01.2]} 70. Rxf4 {[%clk 0:00:03.9]}
70... Re5+ {[%clk 0:00:01.9]} 71. Kd6 {[%clk 0:00:04.5]} 71... Re1 {[%clk
0:00:02.6]} 72. Rf2 {[%clk 0:00:04.1]} 72... Kg6 {[%clk 0:00:02.7]} 73. Rg2+
{[%clk 0:00:04.7]} 73... Kf6 {[%clk 0:00:02.9]} 74. Rf2+ {[%clk 0:00:05.3]}
74... Kg6 {[%clk 0:00:03.3]} 75. Rg2+ {[%clk 0:00:05.9]} 75... Kh7 {[%clk
0:00:03.9]} 76. Rh2+ {[%clk 0:00:06.3]} 76... Kg7 {[%clk 0:00:04.6]} 77. Rg2+
{[%clk 0:00:07]} 77... Kf8 {[%clk 0:00:05.3]} 78. Rf2 {[%clk 0:00:07.3]} 78...
Re6+ {[%clk 0:00:05.4]} 79. Kd5 {[%clk 0:00:07.5]} 79... Ke7 {[%clk 0:00:05.9]}
80. Kd4 {[%clk 0:00:07.8]} 80... f6 {[%clk 0:00:04]} 81. Kd3 {[%clk 0:00:06.8]}
81... Kf7 {[%clk 0:00:04]} 82. Rf1 {[%clk 0:00:03.9]} 82... Kg6 {[%clk
0:00:03.7]} 83. Rg1+ {[%clk 0:00:04.3]} 83... Kf5 {[%clk 0:00:04]} 84. Rf1+
{[%clk 0:00:04.8]} 84... Kg5 {[%clk 0:00:04.7]} 85. Rg1+ {[%clk 0:00:04.4]}
85... Kf4 {[%clk 0:00:05.4]} 86. Rf1+ {[%clk 0:00:04.8]} 86... Kg4 {[%clk
0:00:06.1]} 87. Rg1+ {[%clk 0:00:04.6]} 87... Kf3 {[%clk 0:00:06.8]} 88. Rf1+
{[%clk 0:00:05.1]} 88... Kg2 {[%clk 0:00:05.1]} 89. Rf5 {[%clk 0:00:05.7]} 89...
Kg3 {[%clk 0:00:05.5]} 90. Kd4 {[%clk 0:00:04.1]} 90... Kg4 {[%clk 0:00:05.9]}
91. Rf1 {[%clk 0:00:04.5]} 91... f5 {[%clk 0:00:06.4]} 92. Rg1+ {[%clk 0:00:05]}
92... Kf4 {[%clk 0:00:06.9]} 93. Rf1+ {[%clk 0:00:05.5]} 93... Kg4 {[%clk
0:00:07.5]} 94. Rg1+ {[%clk 0:00:06.1]} 94... Kf3 {[%clk 0:00:08.2]} 95. Rf1+
{[%clk 0:00:06.6]} 95... Kg4 {[%clk 0:00:08.6]} 1/2-1/2